Cogmind - Beta 15 @@@ ROGUE MODE // 2025.10.11 @ 17:54:15 Player: microsand Result: Destroyed by G-34 Mercenary with Small Laser Performance ------------- Evolutions (0) 0 Regions Visited (1) 200 Robots Destroyed (22) 110 Value Destroyed (302) 302 Prototype IDs (0) 0 Alien Tech Used (0) 0 Bonus (0) 0 TOTAL SCORE: 612 Bonus ------- None Cogmind --------- Core Integrity 0/250 Matter 300/300 Energy 250/250 System Corruption 0% Temperature Cool (24) Movement Core (250) Ox4 Location -10/Materials Parts ------- > --- POWER (1) -------- Ion Engine > --- PROPULSION (2) --- (None) > --- UTILITY (2) ------ Small Storage Unit Seismic Detector > --- WEAPON (2) ------- EM Pulse Gun Small Laser > --- INVENTORY (8) ---- Ion Engine Wheel Flight Unit Structural Scanner Signal Interpreter Mining Laser Peak State ------------ > --- POWER ------------ Ion Engine > --- PROPULSION ------- Aluminum Leg Aluminum Leg > --- UTILITY ---------- Small Storage Unit Seismic Detector > --- WEAPON ----------- Small Laser Light Assault Rifle > --- INVENTORY -------- Ion Engine Wheel EM Pulse Gun Mining Laser [Rating: 7] Favorites ----------- Power Ion Engine Engine Ion Engine Propulsion Aluminum Leg Leg Aluminum Leg Utility Small Storage Unit Device Seismic Detector Storage Small Storage Unit Weapon Small Laser Energy Gun Small Laser Ballistic Gun Light Assault Rifle Build | -11 -10 ------- Run | Yrd Mat Slots Evolved . | . . Power . | . . Propulsion . | . . Utility . | . . Weapon . | . . Parts Attached 9 | 8 1 Power 2 | 1 1 Engine 2 | 1 1 Core . | . . Reactor . | . . Propulsion 2 | 2 . Treads . | . . Leg 2 | 2 . Wheel . | . . Hover . | . . Flight . | . . Utility 2 | 2 . Device 1 | 1 . Storage 1 | 1 . Processor . | . . Hackware . | . . Protection . | . . Artifact . | . . Weapon 3 | 3 . Energy Gun 2 | 2 . Energy Cannon . | . . Ballistic Gun 1 | 1 . Ballistic Cannon . | . . Launcher . | . . Special Weapon . | . . Impact Weapon . | . . Slashing Weapon . | . . Piercing Weapon . | . . Special Melee Weapon . | . . Unidentified Prototypes . | . . Parts Lost 3 | . 3 Power . | . . Propulsion 2 | . 2 Utility . | . . Weapon 1 | . 1 Highest Loss Streak 2 | . 2 To Critical Strikes . | . . Average Backups 4 | 3 5 Power . | . 1 Propulsion 1 | . 1 Utility 1 | . 1 Weapon 1 | 1 1 Tool/Special . | . . Unused Backups 5 | . 5 Power . | . . Propulsion 2 | . 2 Utility 2 | . 2 Weapon 1 | . 1 Tool/Special . | . . Average Slot Usage (%) 89 | . 89 Engine 14 | . 14 Leg 18 | . 18 Device 14 | . 14 Storage 14 | . 14 Energy Gun 20 | . 20 Ballistic Gun 7 | . 7 Peak Build Rating 7 | 7 7 Average Rating 5 | 5 6 On Entrance 3 | . 7 Naked Turns . | . . Heaviest Build 14 | 13 14 Greatest Support 20 | 20 20 Greatest Overweight (x) 4 | . 4 Average Overweight (x) . | . . Largest Inventory Capacity 8 | 8 8 Average Capacity 7 | 6 8 Most Carried 6 | 5 6 Average Carried 4 | 3 5 Final Capacity 8 | 8 8 Final Carried 6 | 4 6 Class Distribution -------------------- 100% | Mutant Dominant Class ---------------- Mutant | -10/Materials Resources | -11 -10 ----------- Run | Yrd Mat Matter Collected 317 | 291 26 Remotely . | . . Salvage Created 779 | 191 588 Parts 43 | 21 22 Haulers Intercepted . | . . Recyclers Shooed 2 | . 2 Parts Field Recycled . | . . Retrieved Matter . | . . Parts Self-Destructed . | . . Prevented . | . . Kills | -11 -10 ------- Run | Yrd Mat Combat Hostiles Destroyed 7 | . 7 Guns 7 | . 7 Classes Destroyed 7 | 3 4 Worker 3 | 2 1 Builder 3 | . 3 Tunneler 4 | 4 . Recycler 4 | 1 3 Watcher 1 | . 1 Swarmer 2 | . 2 Grunt 5 | . 5 Best Kill Streak 6 | 6 6 Combat Bots Only 2 | . 2 Max Kills in Single Turn 4 | 1 4 Gunslinging . | . . Exploded . | . . Melee . | . . Uniques/NPCs Destroyed . | . . Combat | -11 -10 -------- Run | Yrd Mat Hostile Shots Fired 87 | . 87 Missed 22 | . 22 Hits 65 | . 65 Projectile 65 | . 65 Critical Strikes 1 | . 1 Damage Taken 743 | . 743 Core 252 | . 252 Absorbed by Shields . | . . Core Remaining (%) 100 | 100 . Volleys Fired 55 | 11 44 Largest 2 | 2 2 Hottest 80 | 60 80 Shots Fired 104 | 22 82 Gun 104 | 22 82 Cannon . | . . Launcher . | . . Special . | . . Kinetic 32 | 11 21 Thermal 50 | 11 39 Explosive . | . . Electromagnetic 22 | . 22 Robot Hit Streak 8 | 5 8 Robot Miss Streak 3 | 2 3 Penetration Max . | . . Secondary Targets 1 | . 1 Max Gunslinging Chain 1 | . 1 Shots Hit Robots 56 | 11 45 Core Hits 38 | 9 29 Critical Kills . | . . Critical Parts Destroyed . | . . Critical Strikes . | . . Melee Attacks . | . . Impact . | . . Slashing . | . . Piercing . | . . Sneak Attacks . | . . Combat Hostiles . | . . Follow-up Attacks . | . . Damage Inflicted 942 | 126 816 Guns 668 | 126 542 Cannons . | . . Explosions 274 | . 274 Melee . | . . Ramming . | . . Kinetic 134 | 35 99 Thermal 618 | 91 527 Explosive . | . . Electromagnetic 190 | . 190 Impact . | . . Slashing . | . . Piercing . | . . Highest Corruption . | . . Average Corruption . | . . Corruption Purged . | . . Corruption Blocked . | . . Overload Shots . | . . Overflow Damage . | . . Projectiles . | . . Explosions . | . . Melee . | . . Knockbacks . | . . Impact . | . . Kinetic . | . . Secondary . | . . Self-Inflicted Damage 36 | . 36 Shots 1 | . 1 Rammed . | . . Targets Rammed 1 | . 1 Kicked 1 | . 1 Crushed . | . . Highest Temperature 233 | 20 233 Average Temperature 69 | 15 78 Received Heat Transfer 276 | . 276 Siege Activations . | . . Martial Activations . | . . Shielding Activations . | . . Robots Disrupted . | . . Combat Hostiles . | . . Robots Corrupted . | . . Combat Hostiles . | . . Parts Fried . | . . Impact Corruptions . | . . Robots Melted . | . . Combat Hostiles . | . . Parts Melted . | . . Heat Transferred 1175 | 200 975 Parts Sabotaged . | . . Parts Stolen . | . . Parts Stripped . | . . Power Chain Reactions 3 | . 3 Alert | -11 -10 ------- Run | Yrd Mat Maximum Alert Level . | . . Low Security (%) 100 | 100 100 Level 1 . | . . Level 2 . | . . Level 3 . | . . Level 4 . | . . Level 5 . | . . High Security . | . . Max Security . | . . Peak Influence 92 | 15 92 Initial . | . . Average 23 | 1 35 Influence Increases 285 | 35 250 Destroy 0b10 Robot/C 140 | . 140 Destroy 0b10 Robot/NC 75 | 35 40 Destroy Leader 42 | . 42 Successful Hack 5 | . 5 Destroy Structure 8 | . 8 Lose Combat Pursuer 15 | . 15 Influence Decreases 228 | 35 193 Time Decay 193 | 35 158 Lost Part 30 | . 30 Purge Threat 5 | . 5 Squads Dispatched 2 | . 2 Investigation . | . . Extermination . | . . Reinforcement 2 | . 2 Assault . | . . Garrison . | . . Intercept . | . . Searches Triggered . | . . Construction Impeded . | . . Haulers Reinforced . | . . Active Scanning Responses . | . . Cargo Convoy Interrupts . | . . Stealth | -11 -10 --------- Run | Yrd Mat Distress Signals 1 | . 1 Communications Jammed . | . . Distress Signals . | . . Times Spotted 20 | . 20 Peak Tracking Total 6 | . 6 Tactical Retreats 1 | . 1 Traps | -11 -10 ------- Run | Yrd Mat Traps Triggered . | . . Indirectly . | . . Trap Hack Attempts . | . . Triggered . | . . Disarmed . | . . Reprogrammed . | . . Reused . | . . Traps Extracted . | . . Installed . | . . Triggered . | . . Machines | -11 -10 ---------- Run | Yrd Mat Machines Disabled . | . . Max in Single Turn . | . . Machines Repaired . | . . Machines Dismantled . | . . Machines Sabotaged . | . . Overloaded Fab Kills . | . . Hacking | -11 -10 --------- Run | Yrd Mat Machines Accessed 2 | . 2 Terminals 2 | . 2 Fabricators . | . . Repair Stations . | . . Recycling Units . | . . Scanalyzers . | . . Garrison Access . | . . Total Hacks 4 | . 4 Successful 2 | . 2 Failed 2 | . 2 Catastrophic 1 | . 1 Database Lockouts . | . . Manual 4 | . 4 Terminals 4 | . 4 Fabricators . | . . Repair Stations . | . . Recycling Units . | . . Scanalyzers . | . . Garrison Access . | . . Terminal Hacks 1 | . 1 Unreport Threat 1 | . 1 Fabricator Hacks . | . . Repair Station Hacks . | . . Recycling Unit Hacks . | . . Scanalyzer . | . . Garrison Access Hacks . | . . Unauthorized Hacks 1 | . 1 Terminals 1 | . 1 Botnet 1 | . 1 Fabricators . | . . Repair Stations . | . . Recycling Units . | . . Scanalyzers . | . . Garrison Access . | . . Data Cores Recovered . | . . Used . | . . Hacking Detections 1 | . 1 Full Trace Events . | . . Feedback Events . | . . Feedback Blocked . | . . Robot Schematics Acquired . | . . Robots Built . | . . Authchips . | . . Time . | . . Total Robot Build Rating . | . . Part Schematics Acquired . | . . Parts Built . | . . Authchips . | . . Time . | . . Total Part Build Rating . | . . Parts Repaired . | . . Time . | . . Parts Recycled . | . . Recycled Matter . | . . Retrieved Matter . | . . Retrieved Components . | . . Parts Scanalyzed . | . . Part Schematics Acquired . | . . Parts Damaged . | . . Bothacking | -11 -10 ------------ Run | Yrd Mat Used RIF Installer . | . . Robots Hacked . | . . Non-combat . | . . Combat . | . . Robot Hacks Applied . | . . Relay Couplers Released . | . . Fabnet Peak Effective % . | . . Robots Rewired . | . . Allies Hacked . | . . Hacks Repelled . | . . Allies | -11 -10 -------- Run | Yrd Mat Total Allies . | . . Largest Group . | . . Highest-Rated Group . | . . Highest-Rated Ally . | . . Total Orders . | . . Ally Attacks . | . . Total Damage . | . . Kills . | . . Allies Corrupted . | . . Allies Melted . | . . Intel | -11 -10 ------- Run | Yrd Mat Active Infowar (turns) 528 | 28 500 Seismic 528 | 28 500 Robot Analysis Total . | . . Derelict Logs Recovered . | . . Drone Launches . | . . Drone Recoveries . | . . Exploration | -11 -10 ------------- Run | Yrd Mat Turns Passed 786 | 286 500 Spaces Moved 362 | 152 210 Core 55 | 27 28 Treads . | . . Legs 307 | 125 182 Wheels . | . . Hover . | . . Flight . | . . Fastest Speed 50 | 50 120 Average Speed 135 | 107 155 Slowest Speed 250 | 120 250 Overloaded Moves . | . . Propulsion Burnouts . | . . Robots Hopped . | . . Potential Cave-ins . | . . Cave-ins Triggered . | . . Exploration Rate (%) 25 | 6 44 Regions Visited 1 Branch Regions . Pre-discovered Areas . | . . Known Exits Taken . | . . Unknown Exits Taken 1 | 1 . Scrap Searched . | . . Spaces Dug . | . . Terrain Destroyed 8 | . 8 Melee . | . . Projectile . | . . AOE 8 | . 8 Terrain Rammed . | . . Walls Destroyed . | . . Machines Disabled . | . . Actions | -11 -10 --------- Run | Yrd Mat Total 557 | 254 303 Wait 116 | 73 43 Move 361 | 151 210 Hop . | . . Pick Up 14 | 11 3 Fast Attach . | . . Attach 8 | 7 1 Detach . | . . Swap 2 | 1 1 Drop . | . . Fire 55 | 11 44 Melee . | . . Ram . | . . Kick 1 | . 1 Crush . | . . Escape Stasis . | . . Rewire . | . . Trap . | . . Miscellaneous . | . . Route ------- -11/Scrapyard -10/Materials (discovered 2 exits: [*Mat] / [*Min]) History --------- Turn | Location | Event 4 | -11/Scrapyard | Discovered new exit (range 14) 287 | -11/Scrapyard | Entered Materials 307 | -10/Materials | Build established: Mutant 331 | -10/Materials | Discovered new exit (range 7) 462 | -10/Materials | Discovered new exit (range 10) 541 | -10/Materials | Core integrity fell below 50% 687 | -10/Materials | Core integrity fell below 20% 787 | -10/Materials | Destroyed by G-34 Mercenary with Small Laser Last Messages --------------- 00638_ U-05 Engineer lays Concrete. 00640_ K-01 Serf collects debris. 00641_ U-05 Engineer lays Concrete. 00651_ U-05 Engineer builds a Wall. 00654_ W-16 Scout destroyed. 00657_ K-01 Serf collects debris. 00664_ Critical hit (Burn: +37). 00683_ Connecting with Terminal... 00688_ G-34 Mercenary misfires. 00692_ Aluminum Leg destroyed. 00693_ G-34 Mercenary destroyed. 00702_ G-47 Trooper destroyed. 00705_ Acquired 5 matter. 00706_ K-01 Serf collects debris. 00710_ K-01 Serf destroyed. 00722_ O-16 Technician: "IFF HANDSHAKE FAILED. SECURING TERMINAL." 00727_ ALERT: Hostiles spotted, dispatching reinforcements to Terminal M001. 00752_ K-01 Serf collects debris. Map ----- +----------------------------------------------------+ | ????????????????????????????????????????????#"" | | ????????????????????????????????????????????#"T | | ????????????????????????????????????????????#"" | | ???????????????????????????????#####????????#"" | | ???????????????????????????????# #????????# | | ???????????????????????????????# < ##########+#### | | ???????????????????????????????# | | ???????????????????????????????# | | ???????????????????????????????# """ """ """ " | | ???????????????????????????????# """ """ """ " | | ???????????????????????????????# """ """ """ " | | ???????????????????????????????# | | ???????????????????????????????# | | ???????????????????????????????# ############## | | ??????????????????????????????## | # """ ??" ?# | | ??????????????????#???????????#" = # """"""?"" # | | ??????????????????# ???????????# [%# """"" " + | | ?????????????????## ??????????#%%%#! # | | ?????????????##### ##########% # [ # | | ?????????? " = % #########+#### | | ?????????? g #???????# #### | | ?????????? ""#! ###g #??????## | | ?????????????????###????# ######## | | ????????????????????????# | | ????????????????????????# | | ????????????????????????#@ | | ????????????????????????# | | ????????????????????????# | | ????????????????????????+ | | ????????????????????????# | | ?????????????????########=*= """ """ """ | | ?????????? a==%### """ """ """ | | ?????????? ########+#### """ """ """ | | ???????????????????# =%[ # r | | ???????????????????# """ # | | ???????????????????# """ # """ | | ???????????????????# """ "T" # !""" | | ???????????????????# # %""" | | ???????????????????############ !!! | | ??????????????????????????????? !!! | | ??????????????????????????????? !!! | | ??????????????????????????????? | | ??????????????????????????????? | | ??????????????????????????????? #??## ######### | | ??????????????????????????????? ?????#?????????? | | ?????????????????????????????????????????????????? | | ?????????????????????????????????????????????????? | | ?????????????????????????????????????????????????? | | ?????????????????????????????????????????????????? | | ?????????????????????????????????????????????????? | +----------------------------------------------------+ Best States ------------- Heat Dissipation 25 Energy Generation 10 Energy Capacity 250 Matter Stores 300 Matter Capacity 300 Sight Range 16 Terrain Scan Density 10 Evasion (%) 55 Item Schematics ----------------- None Robot Schematics ------------------ None Fabricated ------------ Nothing Repaired ---------- Nothing Alien Tech Used ----------------- None Achievements -------------- None Challenges ------------ None Game ------ Seed WarpHybridChainsword Manual? 0 Play Time 00:06:23 Cumulative 16.8 hours Start 2025.10.11 @ 17:50:24 End 2025.10.11 @ 17:54:15 Sessions 1 Manual Loads 0 Difficulty Rogue Special Mode None Game No. 49 Rogue 49 Adventurer 0 Explorer 0 Win Type - Total 0 Types 0/0/0/0/0/0/0/0/0/0 Lore% 27 Gallery% 22 Achievement% 23 Wizard Run 0 Options --------- Layout 1 ASCII 0 Keyboard 0 Movement Numpad Keybinds 0 Fullscreen 1 Font 24/Smallcaps Map View 50x35 Zoom Use 0% Tactical HUD 1 Map Filters NONE Filters NONE Steam 1 RUN: 5de2e617-ea2a-44a0-a84a-570e051f4c4d